fUSD/lending_fUSD_20251206
["ID","MTS","AMOUNT","RATE_DAILY","PERIOD"]
[396588131,1765061452274,-500.0,0.00016712,2]
[396588132,1765061452284,-500.0,0.00016712,2]
[396588133,1765061452295,-1846.03,0.00016712,2]
[396588134,1765061452305,-500.0,0.00016712,2]
[396588135,1765061452315,-500.0,0.00016712,2]
[396588136,1765061452325,-500.0,0.00016712,2]
[396588137,1765061452335,-500.0,0.00016712,2]
[396588138,1765061452345,-500.0,0.00016712,2]
[396588139,1765061452354,-500.0,0.00016712,2]
[396588140,1765061452364,-2481.16,0.00016712,2]
[396588141,1765061452374,-500.0,0.00016712,2]
[396588142,1765061452384,-2310.96,0.00016712,2]
[396588143,1765061452394,-508.43,0.00016712,2]
[396588144,1765061452404,-500.0,0.00016712,2]
[396588145,1765061452414,-4383.32,0.00016712,2]
[396588146,1765061452424,-500.0,0.00016712,2]
[396588147,1765061452434,-2029.83,0.00016712,2]
[396588148,1765061452444,-500.0,0.00016712,2]
[396588149,1765061452454,-300.0,0.00016712,2]
[396588150,1765061452464,-500.0,0.00016712,2]
[396588151,1765061452474,-2083.85,0.00016712,2]
[396588152,1765061452484,-500.0,0.00016712,2]
[396588153,1765061452494,-698.72,0.00016712,2]
[396588154,1765061452503,-500.0,0.00016712,2]
[396588155,1765061452513,-500.0,0.00016712,2]
[396588156,1765061452523,-500.0,0.00016712,2]
[396588157,1765061452533,-160.16004702,0.00016712,2]
[396588158,1765061452544,-579.54,0.00016712,2]
[396588159,1765061452555,-1991.06,0.00016712,2]
[396588160,1765061452565,-2019.63,0.00016712,2]
[396588161,1765061452576,-500.0,0.00016712,2]
[396588162,1765061452586,-500.0,0.00016712,2]
[396588163,1765061452596,-500.0,0.00016712,2]
[396588164,1765061452606,-500.0,0.00016712,2]
[396588165,1765061452615,-500.0,0.00016712,2]
[396588166,1765061452625,-500.0,0.00016712,2]
[396588167,1765061452635,-537.26,0.00016712,2]
[396588168,1765061452647,-531.49,0.00016712,2]
[396588169,1765061452657,-500.0,0.00016712,2]
[396588170,1765061452667,-452.17830164,0.00016712,2]
[396588171,1765061452678,-500.0,0.00016712,2]
[396588172,1765061452689,-500.0,0.00016712,2]
[396588173,1765061452700,-601.2,0.00016712,2]
[396588174,1765061452710,-500.0,0.00016712,2]
[396588175,1765061452720,-500.0,0.00016712,2]
[396588176,1765061452730,-500.0,0.00016712,2]
[396588177,1765061452741,-597.44,0.00016712,2]
[396588178,1765061452751,-500.0,0.00016712,2]
[396588179,1765061452761,-500.0,0.00016712,2]
[396588180,1765061452771,-502.27831511,0.00016712,2]
[396588181,1765061452781,-500.0,0.00016712,2]
[396588182,1765061452791,-500.0,0.00016712,2]
[396588183,1765061452802,-500.0,0.00016712,2]
[396588184,1765061452813,-500.0,0.00016712,2]
[396588185,1765061452823,-500.0,0.00016712,2]
[396588186,1765061452833,-2112.77,0.00016712,2]
[396588187,1765061452844,-2456.35,0.00016712,2]
[396588188,1765061452854,-500.0,0.00016712,2]
[396588189,1765061452864,-500.0,0.00016712,2]
[396588190,1765061452876,-503.8290201,0.00016712,2]
[396588191,1765061452886,-1989.18,0.00016712,2]
[396588192,1765061452895,-500.0,0.00016712,2]
[396588193,1765061452904,-500.0,0.00016712,2]
[396588194,1765061452914,-615.3413631,0.00016712,2]
[396588195,1765061452924,-515.33,0.00016712,2]
[396588196,1765061452933,-962.72,0.00016712,2]
[396588197,1765061452943,-500.0,0.00016712,2]
[396588198,1765061452953,-500.0,0.00016712,2]
[396588199,1765061452964,-500.0,0.00016712,2]
[396588200,1765061452975,-609.78,0.00016712,2]
[396588201,1765061452986,-500.0,0.00016712,2]
[396588202,1765061452995,-500.0,0.00016712,2]
[396588203,1765061453005,-500.0,0.00016712,2]
[396588204,1765061453015,-500.0,0.00016712,2]
[396588205,1765061453031,-500.0,0.00016712,2]
[396588206,1765061453041,-930.7,0.00016712,2]
[396588207,1765061453051,-500.0,0.00016712,2]
[396588208,1765061453062,-607.1,0.00016712,2]
[396588209,1765061453072,-500.0,0.00016712,2]
[396588210,1765061453082,-1980.27,0.00016712,2]
[396588211,1765061453091,-500.0,0.00016712,2]
[396588212,1765061453101,-500.0,0.00016712,2]
[396588213,1765061453111,-500.0,0.00016712,2]
[396588214,1765061453121,-2096.29,0.00016712,2]
[396588215,1765061453131,-500.0,0.00016712,2]
[396588216,1765061453141,-668.81,0.00016712,2]
[396588217,1765061453151,-500.0,0.00016712,2]
[396588218,1765061453161,-500.0,0.00016712,2]
[396588219,1765061453171,-500.0,0.00016712,2]
[396588220,1765061453180,-500.0,0.00016712,2]
[396588221,1765061453190,-500.0,0.00016712,2]
[396588222,1765061453200,-500.0,0.00016712,2]
[396588223,1765061453210,-500.0,0.00016712,2]
[396588224,1765061453219,-154.9,0.00016712,2]
[396588225,1765061453229,-500.0,0.00016712,2]
[396588226,1765061453242,-500.0,0.00016712,2]
[396588227,1765061453251,-500.0,0.00016712,2]
[396588228,1765061453261,-1890.63,0.00016712,2]
[396588229,1765061453271,-500.0,0.00016712,2]
[396588230,1765061453280,-500.0,0.00016712,2]
[396588231,1765061453290,-2190.36,0.00016712,2]
[396588232,1765061453300,-500.0,0.00016712,2]
[396588233,1765061453310,-500.0,0.00016712,2]
[396588234,1765061453320,-500.0,0.00016712,2]
[396588235,1765061453330,-500.0,0.00016712,2]
[396588236,1765061453340,-1094.13,0.00016712,2]
[396588237,1765061453350,-500.0,0.00016712,2]
[396588238,1765061453360,-500.0,0.00016712,2]
[396588239,1765061453370,-500.0,0.00016712,2]
[396588240,1765061453379,-500.0,0.00016712,2]
[396588241,1765061453389,-500.0,0.00016712,2]
[396588242,1765061453399,-2437.47,0.00016712,2]
[396588243,1765061453408,-2001.95,0.00016712,2]
[396588244,1765061453418,-1469.22,0.00016712,2]
[396588245,1765061453428,-251.41576039,0.00016712,2]
[396588246,1765061453437,-1729.84,0.00016712,2]
[396588247,1765061453447,-500.0,0.00016712,2]
[396588248,1765061453457,-500.0,0.00016712,2]
[396588249,1765061453467,-2289.19,0.00016712,2]
[396588250,1765061453477,-500.0,0.00016712,2]
[396588251,1765061453487,-500.0,0.00016712,2]
[396588252,1765061453497,-500.0,0.00016712,2]
[396588253,1765061453507,-595.85,0.00016712,2]
[396588254,1765061453516,-500.0,0.00016712,2]
[396588255,1765061453526,-500.0,0.00016712,2]
[396588256,1765061453535,-500.0,0.00016712,2]
[396588257,1765061453545,-391.64404681,0.00016712,2]
[396588258,1765061453555,-500.0,0.00016712,2]
[396588259,1765061453566,-1802.0,0.00016712,2]
[396588260,1765061453576,-500.0,0.00016712,2]
[396588261,1765061453586,-1122.27,0.00016712,2]
[396588262,1765061453596,-500.0,0.00016712,2]
[396588263,1765061453606,-1858.56,0.00016712,2]
[396588264,1765061453616,-500.0,0.00016712,2]
[396588265,1765061453626,-500.0,0.00016712,2]
[396588266,1765061453635,-500.0,0.00016712,2]
[396588267,1765061453645,-500.0,0.00016712,2]
[396588268,1765061453655,-500.0,0.00016712,2]
[396588269,1765061453665,-500.0,0.00016712,2]
[396588270,1765061453674,-500.0,0.00016712,2]
[396588271,1765061453684,-1805.03,0.00016712,2]
[396588272,1765061453694,-500.0,0.00016712,2]
[396588273,1765061453703,-500.0,0.00016712,2]
[396588274,1765061453713,-500.0,0.00016712,2]
[396588275,1765061453723,-500.0,0.00016712,2]
[396588276,1765061453733,-500.0,0.00016712,2]
[396588277,1765061453743,-500.0,0.00016712,2]
[396588278,1765061453757,-500.0,0.00016712,2]
[396588279,1765061453768,-500.0,0.00016712,2]
[396588280,1765061453778,-2212.94,0.00016712,2]
[396588281,1765061453788,-500.0,0.00016712,2]
[396588282,1765061453798,-1933.8,0.00016712,2]
[396588283,1765061453809,-500.0,0.00016712,2]
[396588284,1765061453820,-2135.06,0.00016712,2]
[396588285,1765061454183,-2296.69,0.00016712,2]
[396588286,1765061454195,-285.77082357,0.00016712,2]
[396588287,1765061454210,-536.96007657,0.00016712,2]
[396588288,1765061454219,-500.0,0.00016712,2]
[396588289,1765061454230,-282.87122018,0.00016712,2]
[396588290,1765061454242,-500.0,0.00016712,2]
[396588291,1765061454253,-1322.95,0.00016712,2]
[396588292,1765061454263,-500.0,0.00016712,2]
[396588293,1765061454272,-500.0,0.00016712,2]
[396588294,1765061454283,-500.0,0.00016712,2]
[396588295,1765061454294,-500.0,0.00016712,2]
[396588296,1765061454304,-500.0,0.00016712,2]
[396588297,1765061454314,-500.0,0.00016712,2]
[396588298,1765061454324,-4343.47,0.00016712,2]
[396588299,1765061454334,-500.0,0.00016712,2]
[396588300,1765061454344,-500.0,0.00016712,2]
[396588301,1765061454353,-1555.65,0.00016712,2]
[396588302,1765061454363,-500.0,0.00016712,2]
[396588303,1765061454373,-500.0,0.00016712,2]
[396588304,1765061454383,-749.11,0.00016712,2]
[396588305,1765061454393,-508.91,0.00016712,2]
[396588306,1765061454406,-500.0,0.00016712,2]
[396588307,1765061454415,-500.0,0.00016712,2]
[396588308,1765061454426,-2453.21,0.00016712,2]
[396588309,1765061454436,-500.0,0.00016712,2]
[396588310,1765061454445,-500.0,0.00016712,2]
[396588311,1765061454455,-500.0,0.00016712,2]
[396588312,1765061454465,-654.89,0.00016712,2]
[396588313,1765061454475,-500.0,0.00016712,2]
[396588314,1765061454485,-837.39,0.00016712,2]
[396588315,1765061454494,-517.39550906,0.00016712,2]
[396588316,1765061454504,-1895.39,0.00016712,2]
[396588317,1765061454513,-3717.94,0.00016712,2]
[396588318,1765061454524,-500.0,0.00016712,2]
[396588319,1765061454533,-2340.0,0.00016712,2]
[396588320,1765061454542,-500.0,0.00016712,2]
[396588321,1765061454552,-500.0,0.00016712,2]
[396588322,1765061454562,-1942.14,0.00016712,2]
[396588323,1765061454572,-7372.52,0.00016712,2]
[396588324,1765061454581,-2136.93,0.00016712,2]
[396588325,1765061454595,-506.81,0.00016712,2]
[396588326,1765061454604,-2001.05,0.00016712,2]
[396588327,1765061454613,-500.0,0.00016712,2]
[396588328,1765061454623,-2310.09,0.00016712,2]
[396588329,1765061454632,-500.0,0.00016712,2]
[396588330,1765061454642,-1426.78,0.00016712,2]
[396588331,1765061454651,-2442.89,0.00016712,2]
[396588332,1765061454661,-500.0,0.00016712,2]
[396588333,1765061454670,-500.0,0.00016712,2]
[396588334,1765061454680,-500.0,0.00016712,2]
[396588335,1765061454690,-500.0,0.00016712,2]
[396588336,1765061454700,-505.27823219,0.00016712,2]
[396588337,1765061454709,-500.0,0.00016712,2]
[396588338,1765061454719,-500.0,0.00016712,2]
[396588339,1765061454730,-500.0,0.00016712,2]
[396588340,1765061454740,-500.0,0.00016712,2]
[396588341,1765061454750,-548.23,0.00016712,2]
[396588342,1765061454760,-500.0,0.00016712,2]
[396588343,1765061454770,-500.0,0.00016712,2]
[396588344,1765061454780,-619.14209758,0.00016712,2]
[396588345,1765061454792,-500.0,0.00016712,2]
[396588346,1765061454801,-500.0,0.00016712,2]
[396588347,1765061454811,-500.0,0.00016712,2]
[396588348,1765061454820,-500.0,0.00016712,2]
[396588349,1765061454830,-2193.75,0.00016712,2]
[396588350,1765061454840,-500.0,0.00016712,2]
[396588351,1765061454849,-911.77,0.00016712,2]
[396588352,1765061454858,-500.0,0.00016712,2]
[396588353,1765061454868,-500.0,0.00016712,2]
[396588354,1765061454877,-2607.21,0.00016712,2]
[396588355,1765061454887,-500.0,0.00016712,2]
[396588356,1765061454896,-500.0,0.00016712,2]
[396588357,1765061454905,-503.46,0.00016712,2]
[396588358,1765061454915,-500.0,0.00016712,2]
[396588359,1765061454924,-500.0,0.00016712,2]
[396588360,1765061454933,-500.0,0.00016712,2]
[396588361,1765061454943,-502.66482999,0.00016712,2]
[396588362,1765061454952,-500.0,0.00016712,2]
[396588363,1765061454961,-500.0,0.00016712,2]
[396588364,1765061454970,-500.0,0.00016712,2]
[396588365,1765061454980,-1162.0,0.00016712,2]
[396588366,1765061454989,-503.7055426,0.00016712,2]
[396588367,1765061454999,-500.0,0.00016712,2]
[396588368,1765061455009,-500.0,0.00016712,2]
[396588369,1765061455018,-500.0,0.00016712,2]
[396588370,1765061455027,-1318.71,0.00016712,2]
[396588371,1765061455037,-1000.0,0.00016712,2]
[396588372,1765061455046,-500.0,0.00016712,2]
[396588373,1765061455056,-1085.53,0.00016712,2]
[396588374,1765061455066,-500.0,0.00016712,2]
[396588375,1765061455076,-527.21,0.00016712,2]
[396588376,1765061455087,-314.72802331,0.00016712,2]
[396588377,1765061455096,-500.0,0.00016712,2]
[396588378,1765061455107,-500.0,0.00016712,2]
[396588379,1765061455117,-500.0,0.00016712,2]
[396588380,1765061455127,-500.0,0.00016712,2]
[396588381,1765061455136,-500.0,0.00016712,2]
[396588382,1765061455146,-500.0,0.00016712,2]
[396588383,1765061455155,-531.51,0.00016712,2]
[396588384,1765061455165,-500.0,0.00016712,2]
[396588385,1765061455175,-2011.72,0.00016712,2]
[396588386,1765061455184,-500.0,0.00016712,2]
[396588387,1765061455195,-500.0,0.00016712,2]
[396588388,1765061455205,-500.0,0.00016712,2]
[396588389,1765061455216,-699.23,0.00016712,2]
[396588390,1765061455227,-3261.38,0.00016712,2]
[396588391,1765061455237,-500.0,0.00016712,2]
[396588392,1765061455251,-1790.3,0.00016712,2]
[396588393,1765061455261,-630.14,0.00016712,2]
[396588394,1765061455270,-599.23,0.00016712,2]
[396588395,1765061455280,-500.0,0.00016712,2]
[396588396,1765061455290,-500.0,0.00016712,2]
[396588397,1765061455300,-500.0,0.00016712,2]
[396588398,1765061455310,-533.03261765,0.00016712,2]
[396588399,1765061455319,-2250.99,0.00016712,2]
[396588400,1765061455329,-517.75,0.00016712,2]
[396588401,1765061455338,-500.0,0.00016712,2]
[396588402,1765061455347,-500.0,0.00016712,2]
[396588403,1765061455357,-548.7,0.00016712,2]
[396588404,1765061455366,-500.0,0.00016712,2]
[396588405,1765061455375,-500.0,0.00016712,2]
[396588406,1765061455384,-2385.42,0.00016712,2]
[396588407,1765061455393,-500.0,0.00016712,2]
[396588408,1765061455403,-500.0,0.00016712,2]
[396588409,1765061455412,-500.0,0.00016712,2]
[396588410,1765061455421,-500.0,0.00016712,2]
[396588411,1765061455431,-518.26639628,0.00016712,2]
[396588412,1765061455440,-500.0,0.00016712,2]
[396588413,1765061455449,-500.0,0.00016712,2]
[396588414,1765061455458,-500.0,0.00016712,2]
[396588415,1765061455467,-542.05,0.00016712,2]
[396588416,1765061455476,-500.0,0.00016712,2]
[396588417,1765061455485,-2497.96,0.00016712,2]
[396588418,1765061455495,-500.0,0.00016712,2]
[396588419,1765061455504,-532.45,0.00016712,2]
[396588420,1765061455514,-500.0,0.00016712,2]
[396588421,1765061455523,-2516.86,0.00016712,2]
[396588422,1765061455532,-500.0,0.00016712,2]
[396588423,1765061455541,-1666.74,0.00016712,2]
[396588424,1765061455551,-500.0,0.00016712,2]
[396588425,1765061455560,-500.0,0.00016712,2]
[396588426,1765061455570,-500.0,0.00016712,2]
[396588427,1765061455579,-2100.97,0.00016712,2]
[396588428,1765061455588,-500.0,0.00016712,2]
[396588429,1765061455597,-500.0,0.00016712,2]
[396588430,1765061455606,-2274.95,0.00016712,2]
[396588431,1765061455616,-774.75,0.00016712,2]
[396588432,1765061455625,-500.0,0.00016712,2]
[396588433,1765061455635,-500.0,0.00016712,2]
[396588434,1765061455645,-500.0,0.00016712,2]
[396588435,1765061455655,-609.89,0.00016712,2]
[396588436,1765061455666,-500.0,0.00016712,2]
[396588437,1765061455677,-2038.16,0.00016712,2]
[396588438,1765061455686,-500.0,0.00016712,2]
[396588439,1765061455696,-500.0,0.00016712,2]
[396588440,1765061455707,-500.0,0.00016712,2]
[396588441,1765061455718,-500.0,0.00016712,2]
[396588442,1765061455728,-2149.73,0.00016712,2]
[396588443,1765061455738,-500.0,0.00016712,2]
[396588444,1765061455747,-500.0,0.00016712,2]
[396588445,1765061455757,-8641.26,0.00016712,2]
[396588446,1765061455767,-517.14,0.00016712,2]
[396588447,1765061455776,-500.0,0.00016712,2]
[396588448,1765061455786,-2428.29,0.00016712,2]
[396588449,1765061455798,-500.0,0.00016712,2]
[396588450,1765061455808,-500.0,0.00016712,2]
[396588451,1765061455818,-500.0,0.00016712,2]
[396588452,1765061455828,-500.0,0.00016712,2]
[396588453,1765061455837,-500.0,0.00016712,2]
[396588454,1765061455847,-8364.22,0.00016712,2]
[396588455,1765061455856,-500.0,0.00016712,2]
[396588456,1765061455866,-1004.04,0.00016712,2]
[396588457,1765061455875,-691.11,0.00016712,2]
[396588458,1765061455884,-500.0,0.00016712,2]
[396588459,1765061455894,-500.0,0.00016712,2]
[396588460,1765061455903,-500.0,0.00016712,2]
[396588461,1765061455912,-500.0,0.00016712,2]
[396588462,1765061455922,-500.0,0.00016712,2]
[396588463,1765061455931,-609.14,0.00016712,2]
[396588464,1765061455940,-500.0,0.00016712,2]
[396588465,1765061455948,-2175.84,0.00016712,2]
[396588466,1765061455958,-647.3,0.00016712,2]
[396588467,1765061455967,-2450.64,0.00016712,2]
[396588468,1765061455978,-500.0,0.00016712,2]
[396588469,1765061455988,-500.0,0.00016712,2]
[396588470,1765061455998,-2375.42,0.00016712,2]
[396588471,1765061456007,-500.0,0.00016712,2]
[396588472,1765061456017,-500.0,0.00016712,2]
[396588473,1765061456026,-1266.94,0.00016712,2]
[396588474,1765061456035,-505.72,0.00016712,2]
[396588475,1765061456044,-1854.1,0.00016712,2]
[396588476,1765061456054,-500.0,0.00016712,2]
[396588477,1765061456066,-574.78,0.00016712,2]
[396588478,1765061456077,-500.0,0.00016712,2]
[396588479,1765061456088,-2508.19,0.00016712,2]
[396588480,1765061456100,-500.0,0.00016712,2]
[396588481,1765061456109,-500.0,0.00016712,2]
[396588482,1765061456118,-500.0,0.00016712,2]
[396588483,1765061456127,-588.73,0.00016712,2]
[396588484,1765061456138,-500.0,0.00016712,2]
[396588485,1765061456147,-750.75,0.00016712,2]
[396588486,1765061456156,-500.0,0.00016712,2]
[396588487,1765061456167,-500.0,0.00016712,2]
[396588488,1765061456178,-1388.33,0.00016712,2]
[396588489,1765061456191,-500.0,0.00016712,2]
[396588490,1765061456201,-500.0,0.00016712,2]
[396588491,1765061456212,-2350.42,0.00016712,2]
[396588492,1765061456223,-500.0,0.00016712,2]
[396588493,1765061456234,-500.0,0.00016712,2]
[396588494,1765061456249,-500.0,0.00016712,2]
[396588495,1765061456259,-500.0,0.00016712,2]
[396588496,1765061456270,-2243.77,0.00016712,2]
[396588497,1765061456280,-2255.38,0.00016712,2]
[396588498,1765061456290,-664.48,0.00016712,2]
[396588499,1765061456302,-1719.2,0.00016712,2]
[396588500,1765061456314,-2667.17,0.00016712,2]
[396588501,1765061456325,-500.0,0.00016712,2]
[396588502,1765061456335,-500.0,0.00016712,2]
[396588503,1765061456346,-500.0,0.00016712,2]
[396588504,1765061456355,-500.0,0.00016712,2]
[396588505,1765061456366,-660.39,0.00016712,2]
[396588506,1765061456376,-714.75,0.00016712,2]
[396588507,1765061456386,-2586.18,0.00016712,2]
[396588508,1765061456398,-504.82300463,0.00016712,2]
[396588509,1765061456408,-500.0,0.00016712,2]
[396588510,1765061456417,-500.0,0.00016712,2]
[396588511,1765061456428,-507.65,0.00016712,2]
[396588512,1765061456438,-500.0,0.00016712,2]
[396588513,1765061456447,-500.0,0.00016712,2]
[396588514,1765061456456,-838.74,0.00016712,2]
[396588515,1765061456465,-2331.91,0.00016712,2]
[396588516,1765061456474,-500.0,0.00016712,2]
[396588517,1765061456486,-555.82,0.00016712,2]
[396588518,1765061456495,-686.88,0.00016712,2]
[396588519,1765061456505,-500.0,0.00016712,2]
[396588520,1765061456515,-682.59,0.00016712,2]
[396588521,1765061456616,-500.0,0.00016712,2]
[396588522,1765061456626,-500.0,0.00016712,2]
[396588523,1765061456635,-500.0,0.00016712,2]
[396588524,1765061456644,-500.0,0.00016712,2]
[396588525,1765061456654,-500.0,0.00016712,2]
[396588526,1765061456663,-811.21,0.00016712,2]
[396588527,1765061456673,-508.99882974,0.00016712,2]
[396588528,1765061456683,-500.0,0.00016712,2]
[396588529,1765061456693,-500.0,0.00016712,2]
[396588530,1765061456703,-1544.71,0.00016712,2]
[396588531,1765061456712,-3279.64,0.00016712,2]
[396588532,1765061456721,-500.0,0.00016712,2]
[396588533,1765061456731,-500.0,0.00016712,2]
[396588534,1765061456740,-500.0,0.00016712,2]
[396588535,1765061456750,-500.0,0.00016712,2]
[396588536,1765061456759,-965.2,0.00016712,2]
[396588537,1765061456769,-1896.3,0.00016712,2]
[396588538,1765061456777,-500.0,0.00016712,2]
[396588539,1765061456787,-500.0,0.00016712,2]
[396588540,1765061456796,-500.0,0.00016712,2]
[396588541,1765061456807,-632.79,0.00016712,2]
[396588542,1765061456818,-674.36,0.00016712,2]
[396588543,1765061456829,-500.0,0.00016712,2]
[396588544,1765061456840,-500.0,0.00016712,2]
[396588545,1765061456849,-3296.61,0.00016712,2]
[396588546,1765061456860,-500.0,0.00016712,2]
[396588547,1765061456870,-704.87,0.00016712,2]
[396588548,1765061456880,-500.0,0.00016712,2]
[396588549,1765061456892,-500.0,0.00016712,2]
[396588550,1765061456901,-2298.7,0.00016712,2]
[396588551,1765061456910,-500.0,0.00016712,2]
[396588552,1765061456919,-500.0,0.00016712,2]
[396588553,1765061456931,-500.0,0.00016712,2]
[396588554,1765061456943,-500.0,0.00016712,2]
[396588555,1765061456955,-500.0,0.00016712,2]
[396588556,1765061456966,-500.0,0.00016712,2]
[396588557,1765061456977,-2326.24,0.00016712,2]
[396588558,1765061456986,-500.0,0.00016712,2]
[396588559,1765061456996,-1977.29,0.00016712,2]
[396588560,1765061457006,-828.26,0.00016712,2]
[396588561,1765061457016,-521.18,0.00016712,2]
[396588562,1765061457027,-497.85665995,0.00016712,2]
[396588563,1765061457036,-500.0,0.00016712,2]
[396588564,1765061457045,-500.0,0.00016712,2]
[396588565,1765061457057,-500.0,0.00016712,2]
[396588566,1765061457067,-2183.97,0.00016712,2]
[396588567,1765061457077,-500.0,0.00016712,2]
[396588568,1765061457086,-500.0,0.00016712,2]
[396588569,1765061457095,-500.0,0.00016712,2]
[396588570,1765061457104,-500.0,0.00016712,2]
[396588571,1765061457115,-433.64249485,0.00016712,2]
[396588572,1765061457125,-500.0,0.00016712,2]
[396588573,1765061457134,-2571.46,0.00016712,2]
[396588574,1765061457145,-500.0,0.00016712,2]
[396588575,1765061457155,-500.0,0.00016712,2]
[396588576,1765061457165,-2258.19,0.00016712,2]
[396588577,1765061457175,-500.0,0.00016712,2]
[396588578,1765061457186,-500.0,0.00016712,2]
[396588579,1765061457196,-500.0,0.00016712,2]
[396588580,1765061457206,-1751.68,0.00016712,2]
[396588581,1765061457216,-2191.74,0.00016712,2]
[396588582,1765061457226,-500.0,0.00016712,2]
[396588583,1765061457235,-500.0,0.00016712,2]
[396588584,1765061457248,-636.3,0.00016712,2]
[396588585,1765061457257,-2071.18,0.00016712,2]
[396588586,1765061457266,-514.8,0.00016712,2]
[396588587,1765061457275,-2061.86,0.00016712,2]
[396588588,1765061457285,-204.65,0.00016712,2]
[396588589,1765061457294,-500.0,0.00016712,2]
[396588590,1765061457303,-500.0,0.00016712,2]
[396588591,1765061457312,-530.8,0.00016712,2]
[396588592,1765061457321,-500.0,0.00016712,2]
[396588593,1765061457330,-500.0,0.00016712,2]
[396588594,1765061457339,-500.0,0.00016712,2]
[396588595,1765061457348,-1990.47,0.00016712,2]
[396588596,1765061457357,-527.02,0.00016712,2]
[396588597,1765061457366,-792.20546376,0.00016722,2]
[396588598,1765061457375,-155.75078494,0.0001673,2]
[396588599,1765061457384,-2819.32438274,0.00016731,2]
[396588600,1765061457394,-966.0,0.00016758,2]
[396588601,1765061457403,-155.75078491,0.00016764,2]
[396588602,1765061457416,-170.674,0.00016776,2]
[396588603,1765061457425,-3034.979,0.00016776,2]
[396588604,1765061457434,-600.0,0.00016786,2]
[396588605,1765061457444,-155.75078491,0.00016798,2]
[396588606,1765061457453,-1000.0,0.000168,2]
[396588607,1765061457462,-2819.32438274,0.00016815,2]
[396588608,1765061457471,-784.46,0.00016829,2]
[396588609,1765061457481,-107935.25310166,0.0001683,2]
[396588610,1765061457490,-151.0,0.0001683,2]
[396588611,1765061457499,-151.0,0.0001683,2]
[396588612,1765061457508,-151.0,0.0001683,2]
[396588613,1765061457517,-314.254088,0.0001683,2]
[396588614,1765061457526,-314.254088,0.0001683,2]
[396588615,1765061457535,-314.254088,0.0001683,2]
[396588616,1765061457544,-186.616004,0.0001683,2]
[396588617,1765061457553,-240.572356,0.0001683,2]
[396588618,1765061457564,-314.254088,0.0001683,2]
[396588619,1765061457573,-240.572356,0.0001683,2]
[396588620,1765061457582,-240.572356,0.0001683,2]
[396588621,1765061457592,-240.572356,0.0001683,2]
[396588622,1765061457601,-151.0,0.0001683,2]
[396588623,1765061457611,-156.956192,0.0001683,2]
[396588624,1765061457620,-157.502877,0.0001683,2]
[396588625,1765061457629,-151.0,0.0001683,2]
[396588626,1765061457638,-151.0,0.0001683,2]
[396588627,1765061457647,-151.0,0.0001683,2]
[396588628,1765061457657,-151.0,0.0001683,2]
[396588629,1765061457666,-151.0,0.0001683,2]
[396588630,1765061457676,-151.0,0.0001683,2]